bitfinex-derivatives/quotes_BTCF0:USTF0_20250508
["timestamp","ask_amount","ask_price","bid_price","bid_amount"]
[1746719205674,1.73853264,101380.0,101370.0,0.05234003]
[1746719205871,1.4703677,101380.0,101370.0,0.05634003]
[1746719206382,1.2731,101380.0,101370.0,0.25362713]
[1746719206679,0.1835,101380.0,101370.0,0.64342713]
[1746719206883,0.003,101380.0,101370.0,0.91259207]
[1746719207378,0.004,101380.0,101370.0,0.64051516]
[1746719207568,0.004,101380.0,101370.0,0.6405787]
[1746719207766,0.5443,101380.0,101370.0,0.64357922]
[1746719207972,0.7303,101380.0,101370.0,0.64358093]
[1746719208271,0.7303,101380.0,101370.0,0.64342653]
[1746719208272,0.7313,101380.0,101370.0,0.64342653]
[1746719208471,0.9285677,101380.0,101370.0,0.43109452]
[1746719208775,1.19773264,101380.0,101370.0,0.05537229]
[1746719208975,0.9275677,101380.0,101370.0,0.0553744]
[1746719209175,0.7303,101380.0,101370.0,0.2546615]
[1746719209374,0.3608,101390.0,101380.0,0.0493166]
[1746719209680,0.5498,101400.0,101390.0,0.1972482]
[1746719209879,0.7301,101400.0,101390.0,0.23882763]
[1746719210073,0.7301,101400.0,101390.0,0.60722763]
[1746719210581,0.7301,101400.0,101390.0,0.60722476]
[1746719210782,0.9273287,101400.0,101390.0,0.60722476]
[1746719210987,0.7301,101400.0,101390.0,0.60722476]
[1746719211281,0.5421,101400.0,101390.0,0.60737438]
[1746719211581,0.7393287,101400.0,101390.0,0.04172618]
[1746719211776,1.20099364,101400.0,101390.0,0.04172618]
[1746719211974,0.1972677,101380.0,101370.0,0.01076721]
[1746719212174,0.5580677,101380.0,101370.0,0.02221512]
[1746719212371,0.3608,101380.0,101370.0,0.21950222]
[1746719212581,0.7421,101380.0,101370.0,0.59460222]
[1746719212777,0.9393677,101380.0,101370.0,0.39731512]
[1746719212985,0.7421,101380.0,101370.0,0.58315431]
[1746719213185,0.9403677,101380.0,101370.0,0.58715431]
[1746719213580,0.9403677,101380.0,101370.0,0.59015431]
[1746719213883,0.7431,101380.0,101370.0,0.59015431]
[1746719214082,0.9403677,101380.0,101370.0,0.39286721]
[1746719214278,0.9403677,101380.0,101370.0,0.01776721]
[1746719214781,0.9403677,101380.0,101370.0,0.20846721]
[1746719215284,0.9403677,101380.0,101370.0,0.40575431]
[1746719215480,0.7431,101380.0,101370.0,0.20846721]
[1746719215683,0.9403677,101380.0,101370.0,0.01776721]
[1746719215887,1.20953264,101380.0,101370.0,0.01776721]
[1746719216086,1.39303264,101380.0,101370.0,0.01776721]
[1746719216678,1.39303264,101380.0,101370.0,0.01045249]
[1746719217181,1.39303264,101380.0,101350.0,0.00846971]
[1746719217182,0.1973066,101360.0,101350.0,0.00846971]
[1746719217376,0.1973066,101360.0,101350.0,0.00098665]
[1746719217377,1.18807154,101360.0,101350.0,0.00098665]
[1746719217882,1.58237154,101360.0,101350.0,0.00098665]
[1746719218077,2.08237154,101360.0,101350.0,0.00098665]
[1746719218478,2.08237154,101360.0,101350.0,0.00198665]
[1746719218787,2.18103554,101360.0,101350.0,0.00198665]
[1746719219287,0.197326,101350.0,101340.0,0.01677351]
[1746719219486,0.197365,101330.0,101320.0,0.14426471]
[1746719219690,1.18812994,101330.0,101320.0,0.14426471]
[1746719219988,1.56642994,101330.0,101320.0,0.14426471]
[1746719220194,1.297265,101330.0,101320.0,0.34164921]
[1746719220390,1.297265,101330.0,101320.0,0.52344921]
[1746719220694,1.56942994,101330.0,101320.0,0.00098689]
[1746719221485,1.47075694,101330.0,101310.0,0.00197409]
[1746719221706,1.19874944,101320.0,101310.0,0.00197409]
[1746719222190,0.558204,101310.0,101300.0,0.10098713]
[1746719222486,0.1974429,101290.0,101280.0,0.14525249]
[1746719222689,1.18820784,101290.0,101280.0,0.14525249]
[1746719222885,1.37700784,101290.0,101280.0,0.14525249]
[1746719223186,1.66663984,101290.0,101280.0,0.14525249]
[1746719223380,1.1013,101290.0,101280.0,0.34271489]
[1746719223784,1.1013,101290.0,101280.0,0.54191489]
[1746719224088,1.1013,101290.0,101280.0,0.73920591]
[1746719224283,0.1888,101290.0,101280.0,0.73920591]
[1746719224680,0.3608,101290.0,101280.0,0.73920591]
[1746719225088,0.5594,101300.0,101290.0,0.1974429]
[1746719225386,0.7568234,101300.0,101290.0,0.39649102]
[1746719225587,0.9477234,101300.0,101290.0,0.39649102]
[1746719225979,0.5594,101300.0,101290.0,0.59393392]
[1746719226180,0.5604,101300.0,101290.0,0.39749102]
[1746719226383,0.1996,101300.0,101290.0,0.59493392]
[1746719226684,0.001,101300.0,101290.0,0.59493392]
[1746719226882,0.5535,101310.0,101300.0,0.1974234]
[1746719227083,0.7493,101310.0,101300.0,0.5666234]
[1746719227284,1.21586894,101310.0,101300.0,0.20189102]
[1746719227583,1.21586894,101310.0,101300.0,0.01529102]
[1746719227790,0.1974429,101290.0,101280.0,0.00197467]
[1746719228088,1.18820784,101290.0,101280.0,0.00197467]
[1746719228287,0.5582429,101290.0,101280.0,0.00197467]
[1746719228490,0.5859429,101290.0,101280.0,0.00197467]
[1746719228681,0.7493,101290.0,101280.0,0.00197467]
[1746719228887,0.1927,101290.0,101280.0,0.56433707]
[1746719229081,0.1974429,101290.0,101280.0,0.36687467]
[1746719229282,1.02010784,101290.0,101280.0,0.36687467]
[1746719229483,1.20890784,101290.0,101280.0,0.36787467]
[1746719230089,1.20890784,101290.0,101280.0,0.18527467]
[1746719230291,1.21090784,101290.0,101280.0,0.00397467]
[1746719230790,0.5555,101290.0,101280.0,0.20043707]
[1746719230989,0.5565,101290.0,101280.0,0.58203707]
[1746719231190,0.003,101290.0,101280.0,0.58203707]
[1746719231496,0.3638,101290.0,101280.0,0.58203707]
[1746719231687,1.01120784,101290.0,101280.0,0.38457467]
[1746719231887,1.20680784,101290.0,101280.0,0.38457467]
[1746719232086,0.5446,101290.0,101280.0,0.58203707]
[1746719232285,0.9376429,101290.0,101280.0,0.38457467]
[1746719232485,1.20680784,101290.0,101280.0,0.00297467]
[1746719233085,0.9376429,101290.0,101280.0,0.00297467]
[1746719233291,1.20680784,101290.0,101280.0,0.00297467]
[1746719234493,1.20680784,101290.0,101280.0,0.18887467]
[1746719234798,1.20680784,101290.0,101280.0,0.00297467]
[1746719235499,0.9376429,101290.0,101280.0,0.00297467]
[1746719235690,0.9376429,101290.0,101280.0,0.38347467]
[1746719235891,1.20680784,101290.0,101280.0,0.38347467]
[1746719236198,1.20680784,101290.0,101280.0,0.00297467]
[1746719236991,0.9376429,101290.0,101280.0,0.00297467]
[1746719237187,0.9376429,101290.0,101280.0,0.38347467]
[1746719237494,1.20680784,101290.0,101280.0,0.00297467]
[1746719237699,0.9376429,101290.0,101280.0,0.00297467]
[1746719237889,1.20680784,101290.0,101280.0,0.18957467]
[1746719238301,1.20680784,101290.0,101280.0,0.00297467]
[1746719239299,1.20680784,101290.0,101280.0,0.18957467]
[1746719239899,1.20680784,101290.0,101280.0,0.00297467]
[1746719240295,1.20680784,101290.0,101280.0,0.18957467]
[1746719241088,0.7402,101290.0,101280.0,0.38703707]
[1746719241288,0.7420429,101290.0,101280.0,0.37057467]
[1746719241488,0.9365429,101290.0,101280.0,0.37057467]
[1746719241694,1.20570784,101290.0,101280.0,0.00297467]
[1746719241997,1.13979702,101290.0,101280.0,0.00297467]
[1746719242194,1.13979702,101290.0,101280.0,0.19247467]
[1746719242396,0.9365429,101290.0,101280.0,0.19247467]
[1746719242712,1.13979702,101290.0,101280.0,0.00297467]
[1746719242905,0.1974624,101280.0,101270.0,0.00098738]
[1746719243097,1.35537064,101280.0,101270.0,0.00098738]
[1746719243296,1.15211652,101280.0,101270.0,0.00098738]
[1746719243494,0.9488624,101280.0,101270.0,0.00098738]
[1746719243698,0.9488624,101280.0,101270.0,0.19048738]
[1746719243895,0.7514,101280.0,101270.0,0.56786928]
[1746719244201,0.3628,101290.0,101280.0,0.1974624]
[1746719244396,0.1994429,101290.0,101280.0,0.5618624]
[1746719244597,0.002,101290.0,101280.0,0.5618624]
[1746719244899,0.7578234,101300.0,101290.0,0.1974429]
[1746719245098,0.7578234,101300.0,101290.0,0.3828]
[1746719245605,0.7578234,101300.0,101290.0,0.39743311]
[1746719245791,0.5604,101300.0,101290.0,0.39743311]
[1746719245992,0.3608,101300.0,101290.0,0.59487601]
[1746719246196,0.6095453,101320.0,101300.0,0.2961331]
[1746719246395,0.002,101320.0,101310.0,0.580204]
[1746719246696,0.002,101320.0,101310.0,0.84875457]
[1746719246899,0.002,101320.0,101310.0,0.773704]
[1746719247108,0.1993845,101320.0,101310.0,0.5763]
[1746719247302,0.5651845,101320.0,101310.0,0.5763]
[1746719247600,0.007,101320.0,101310.0,0.773704]
[1746719247802,0.002,101320.0,101310.0,0.773704]
[1746719247996,0.2053845,101320.0,101310.0,0.5773]
[1746719248192,0.83473507,101320.0,101310.0,0.3838]
[1746719248500,0.016,101320.0,101310.0,0.581204]
[1746719248696,0.016,101320.0,101310.0,1.21055457]
[1746719249299,0.016,101320.0,101310.0,0.942004]
[1746719249797,0.016,101320.0,101310.0,1.040708]
[1746719250001,0.2133845,101320.0,101310.0,0.942004]
[1746719250402,0.5741845,101320.0,101310.0,0.581204]
[1746719250695,0.5741845,101320.0,101310.0,0.3838]
[1746719250899,0.7710845,101320.0,101310.0,0.3838]
[1746719251309,0.9643845,101320.0,101310.0,0.3838]
[1746719251600,0.5741845,101320.0,101310.0,0.581204]
[1746719252011,0.3768,101320.0,101310.0,0.581204]
[1746719252309,0.3768,101320.0,101310.0,1.21055457]
[1746719252310,0.012,101320.0,101310.0,1.21055457]
[1746719252901,0.19838171,101340.0,101330.0,0.197365]
[1746719252902,0.00148171,101340.0,101330.0,0.197365]
[1746719253205,0.00148171,101340.0,101330.0,1.19631557]
[1746719253505,0.19882721,101340.0,101330.0,0.566965]
[1746719253710,0.55962721,101340.0,101330.0,0.566965]
[1746719253901,0.00148171,101340.0,101330.0,0.566965]
[1746719254103,0.01748171,101340.0,101330.0,0.83651557]
[1746719254415,0.01748171,101340.0,101330.0,1.29599957]
[1746719254602,0.01748171,101340.0,101330.0,0.928765]
[1746719255200,0.01748171,101340.0,101330.0,1.19731557]
[1746719255406,0.01748171,101340.0,101330.0,0.928765]
[1746719255803,0.01748171,101340.0,101330.0,0.567965]
[1746719256108,0.37828171,101340.0,101330.0,0.567965]
[1746719256306,0.01748171,101340.0,101330.0,0.567965]
[1746719257410,0.57562721,101340.0,101330.0,0.567965]
[1746719257610,0.76482721,101340.0,101330.0,0.567965]
[1746719257798,0.56748171,101340.0,101330.0,0.567965]
[1746719258410,0.20668171,101340.0,101330.0,0.567965]
[1746719259209,0.01748171,101340.0,101330.0,0.83651557]
[1746719259408,0.84417778,101340.0,101330.0,0.19]
[1746719259714,0.96222721,101340.0,101330.0,0.387365]
[1746719260100,0.96222721,101340.0,101330.0,0.19]
[1746719260305,0.197404,101310.0,101300.0,0.3803163]
[1746719260504,0.197404,101310.0,101300.0,0.199]
[1746719260812,0.392604,101310.0,101300.0,0.5834234]
[1746719261008,0.590004,101310.0,101300.0,0.5834234]
[1746719261416,0.591004,101310.0,101300.0,0.5834234]
[1746719261909,1.22035457,101310.0,101300.0,0.199]
[1746719262110,0.1974234,101300.0,101290.0,0.187]
[1746719262313,0.9435234,101300.0,101290.0,0.5694429]
[1746719262805,0.7461,101300.0,101290.0,0.5694429]
[1746719263006,0.556,101300.0,101290.0,0.5694429]
[1746719263207,0.3618,101300.0,101290.0,0.84735351]
[1746719263518,0.001,101300.0,101290.0,1.20815351]
[1746719264106,0.001,101300.0,101290.0,1.21015351]
[1746719264306,0.001,101300.0,101290.0,1.30887351]
[1746719264514,0.001,101300.0,101290.0,0.67952294]
[1746719265012,0.001,101300.0,101290.0,1.04032294]
[1746719265313,0.001,101300.0,101290.0,0.94160294]
[1746719266609,0.5592234,101300.0,101290.0,0.38336004]
[1746719266919,0.9296234,101300.0,101290.0,0.58080294]
[1746719267420,1.19817397,101300.0,101290.0,0.01136004]
[1746719267609,1.39507397,101300.0,101290.0,0.01136004]
[1746719267816,1.64507397,101300.0,101290.0,0.01136004]
[1746719268712,1.39507397,101300.0,101290.0,0.01136004]
[1746719269418,1.1265234,101300.0,101290.0,0.01136004]
[1746719269609,1.39507397,101300.0,101290.0,0.01136004]
[1746719269807,1.1265234,101300.0,101290.0,0.20880294]
[1746719270112,0.9291,101300.0,101290.0,0.20880294]
[1746719270315,1.1265234,101300.0,101290.0,0.01136004]
[1746719270511,1.39507397,101300.0,101290.0,0.20880294]
[1746719270720,0.9291,101300.0,101290.0,0.39490294]
[1746719270910,0.9291,101300.0,101290.0,0.58620294]
[1746719271308,0.3714,101300.0,101290.0,0.58620294]
[1746719271608,0.1817,101300.0,101290.0,0.58620294]
[1746719271912,0.1817,101300.0,101290.0,0.94700294]
[1746719272112,0.1817,101300.0,101290.0,1.21555351]
[1746719272314,0.001,101300.0,101290.0,1.21555351]
[1746719272718,0.001,101300.0,101290.0,1.04572294]
[1746719273110,0.001,101300.0,101290.0,1.39572294]
[1746719274119,0.001,101300.0,101290.0,1.49627351]
[1746719274321,0.3903845,101320.0,101310.0,0.197404]
[1746719274524,0.3755,101320.0,101310.0,0.197404]
[1746719274825,0.9336845,101320.0,101310.0,0.595904]
[1746719275008,0.5728845,101320.0,101310.0,0.595904]
[1746719275209,0.1825,101320.0,101310.0,0.595904]
[1746719275821,0.1855,101320.0,101310.0,0.596904]
[1746719276026,0.5695845,101320.0,101310.0,0.596904]
[1746719276215,0.5695845,101320.0,101310.0,0.001]
[1746719276410,0.5705845,101320.0,101310.0,0.198404]
[1746719276619,0.5705845,101320.0,101310.0,0.583604]
[1746719277019,0.9313845,101320.0,101310.0,0.583604]
[1746719277211,1.19993507,101320.0,101310.0,0.001]
[1746719277417,0.9313845,101320.0,101310.0,0.198404]
[1746719277917,0.9313845,101320.0,101310.0,0.579204]
[1746719278631,0.9313845,101320.0,101310.0,0.3818]
[1746719278817,1.19993507,101320.0,101310.0,0.001]
[1746719279819,1.13453334,101320.0,101310.0,0.001]
[1746719281320,1.13453334,101320.0,101310.0,0.198404]
[1746719281520,0.734,101320.0,101310.0,0.198404]
[1746719281821,0.9313845,101320.0,101310.0,0.574904]
[1746719282014,1.13453334,101320.0,101310.0,0.1876]
[1746719282323,1.13453334,101320.0,101310.0,0.001]
[1746719283819,1.19978022,101320.0,101310.0,0.001]
[1746719284125,0.9313845,101320.0,101310.0,0.198404]
[1746719284320,0.3732,101320.0,101310.0,0.198404]
[1746719284518,0.5705845,101320.0,101310.0,0.574504]
[1746719284815,0.9313845,101320.0,101310.0,0.574504]
[1746719285633,0.9313845,101320.0,101310.0,0.3771]
[1746719285928,0.9313845,101320.0,101310.0,0.574504]
[1746719286832,0.1865,101320.0,101310.0,0.574504]
[1746719287022,0.004,101320.0,101310.0,1.20369972]
[1746719287223,0.60896821,101340.0,101330.0,0.197365]
[1746719287740,0.60896821,101340.0,101330.0,0.3816]
[1746719287934,0.60896821,101340.0,101330.0,0.578965]
[1746719288322,0.36228171,101340.0,101330.0,0.578965]
[1746719288526,0.55962721,101340.0,101330.0,0.578965]
[1746719288725,0.56562721,101340.0,101330.0,0.579965]
[1746719289126,0.83402293,101340.0,101330.0,0.3826]
[1746719289428,0.57062721,101340.0,101330.0,0.3971655]
[1746719289931,0.57062721,101340.0,101330.0,0.5945305]
[1746719290232,0.57062721,101340.0,101330.0,0.3971655]
[1746719290434,0.96142721,101340.0,101330.0,0.5945305]
[1746719290827,0.60062721,101340.0,101330.0,0.5945305]
[1746719291021,0.011,101340.0,101330.0,1.23915107]
[1746719291323,0.003,101350.0,101330.0,1.35780817]
[1746719291324,0.197326,101350.0,101330.0,1.35780817]
[1746719291530,0.197326,101350.0,101340.0,0.5716455]
[1746719291531,0.6567949,101350.0,101340.0,0.5716455]
[1746719291730,0.3453297,101350.0,101340.0,0.586211]
[1746719291927,0.9053297,101350.0,101340.0,0.586211]
[1746719292430,0.9063297,101350.0,101340.0,0.586211]
[1746719292735,0.001,101350.0,101340.0,0.60163556]
[1746719292932,0.001,101350.0,101340.0,0.88158889]
[1746719293227,0.3608,101360.0,101350.0,0.197326]
[1746719293429,0.7384028,101370.0,101360.0,0.1973066]
[1746719293631,0.003,101380.0,101370.0,0.1972871]
[1746719293826,0.4038904,101390.0,101380.0,0.1972677]
[1746719294032,0.3785482,101390.0,101380.0,0.22345653]
[1746719294231,0.3785482,101390.0,101380.0,0.61900955]
[1746719294431,0.5580482,101390.0,101380.0,0.61900955]
[1746719294732,0.5580482,101390.0,101380.0,0.61900914]
[1746719295130,0.1972482,101390.0,101380.0,0.61900914]
[1746719295526,0.72205,101400.0,101390.0,0.1972441]
[1746719295726,0.00878288,101400.0,101390.0,1.22962824]
[1746719295931,0.00878288,101400.0,101390.0,0.96123252]
[1746719296131,0.00878288,101400.0,101390.0,1.14458554]
[1746719296326,0.002,101410.0,101400.0,0.1972197]
[1746719296532,0.002,101410.0,101400.0,1.23640384]
[1746719296731,0.002,101410.0,101400.0,1.43955686]
[1746719297136,0.002,101410.0,101400.0,1.33916114]
[1746719297335,0.002,101410.0,101400.0,1.43777714]
[1746719297531,0.002,101410.0,101400.0,1.70617286]
[1746719297942,0.5538,101430.0,101420.0,0.1971701]
[1746719297943,0.1981507,101430.0,101420.0,0.1971701]
[1746719298240,0.001,101430.0,101420.0,0.23943936]
[1746719298436,0.001,101430.0,101420.0,0.62323936]
[1746719298639,0.001,101430.0,101420.0,0.57393942]
[1746719299142,0.2021507,101430.0,101420.0,0.57393942]
[1746719299346,0.005,101430.0,101420.0,0.57393942]
[1746719299545,0.2071507,101430.0,101420.0,0.57493942]
[1746719299843,0.2071507,101430.0,101420.0,0.57499167]
[1746719300233,0.5679507,101430.0,101420.0,0.42712151]
[1746719300439,0.9595507,101430.0,101420.0,0.62429161]
[1746719300944,0.9595507,101430.0,101420.0,0.42712151]
[1746719301144,0.9595507,101430.0,101420.0,0.62429161]
[1746719301437,0.9595507,101430.0,101420.0,0.42712292]
[1746719301645,1.22794642,101430.0,101420.0,0.04332292]
[1746719301842,1.41244642,101430.0,101420.0,0.03176359]
[1746719302039,1.1440507,101430.0,101420.0,0.22893369]
[1746719302238,0.7832507,101430.0,101420.0,0.61963369]
[1746719302638,1.1440507,101430.0,101420.0,0.43400494]
[1746719302946,1.41244642,101430.0,101420.0,0.04332306]
[1746719303137,1.1440507,101430.0,101420.0,0.03176359]
[1746719303441,0.7832507,101430.0,101420.0,0.03176359]
[1746719303646,1.1440507,101430.0,101420.0,0.03176359]
[1746719303849,1.34672157,101430.0,101420.0,0.03176359]
[1746719304139,0.1971896,101410.0,101400.0,0.1947]
[1746719304345,0.85926347,101410.0,101400.0,0.02697669]
[1746719304842,1.61146347,101410.0,101400.0,0.01541569]
[1746719305043,1.3101896,101410.0,101400.0,0.21262469]
[1746719305241,1.3101896,101410.0,101400.0,0.40501569]
[1746719305445,1.51486047,101410.0,101400.0,0.21251569]
[1746719305644,1.51486047,101410.0,101400.0,0.01541569]
[1746719306048,1.3121896,101410.0,101400.0,0.41108669]
[1746719306256,1.3121896,101410.0,101400.0,0.60358669]
[1746719306745,1.115,101410.0,101400.0,0.60358669]
[1746719307048,1.3121896,101410.0,101400.0,0.60358669]
[1746719307248,1.3131896,101410.0,101400.0,0.60358669]
[1746719307635,1.114,101410.0,101400.0,0.60558669]
[1746719307838,0.3618,101410.0,101400.0,0.61311036]
[1746719308239,0.5589896,101410.0,101400.0,0.61310969]
[1746719308645,1.15456047,101410.0,101400.0,0.41590069]
[1746719308842,0.7547,101410.0,101400.0,0.61310969]
[1746719309146,0.5589896,101410.0,101400.0,0.61310969]
[1746719309347,0.7537,101410.0,101400.0,0.61510969]
[1746719309546,0.9508896,101410.0,101400.0,0.61510969]
[1746719309742,0.7537,101410.0,101400.0,0.61510969]
[1746719310049,0.1971701,101420.0,101410.0,0.2957615]
[1746719310256,0.4110893,101430.0,101420.0,0.1971701]
[1746719310548,0.2474552,101430.0,101420.0,0.59277653]
[1746719310741,1.0011552,101430.0,101420.0,0.60819468]
[1746719310942,1.20382607,101430.0,101420.0,0.60819468]
[1746719311148,1.20382607,101430.0,101420.0,0.22632458]
[1746719311342,1.20382607,101430.0,101420.0,0.21481569]
[1746719311545,1.0011552,101430.0,101420.0,0.21481569]
[1746719311746,1.20382607,101430.0,101420.0,0.21481569]
[1746719312051,1.20682607,101430.0,101420.0,0.21481569]
[1746719312548,0.1971896,101410.0,101400.0,0.00752367]
[1746719312749,0.2958345,101400.0,101380.0,0.6733531]
[1746719313047,0.95959937,101390.0,101380.0,0.01889069]
[1746719313252,1.15429937,101390.0,101380.0,0.05049914]
[1746719313555,1.15429937,101390.0,101380.0,0.01147841]
[1746719313851,1.51509937,101390.0,101380.0,0.01147841]
[1746719314155,0.1972479,101380.0,101370.0,0.1903526]
[1746719314454,0.9328479,101380.0,101370.0,0.39918566]
[1746719314644,0.9328479,101380.0,101370.0,0.58208566]
[1746719314839,0.7356,101380.0,101370.0,0.58208566]
[1746719315050,0.9328479,101380.0,101370.0,0.5820848]
[1746719315453,0.9328479,101380.0,101370.0,0.61657273]
[1746719315643,1.13551877,101380.0,101370.0,0.24381765]
[1746719315843,1.13551877,101380.0,101370.0,0.44408505]
[1746719316049,0.9328479,101380.0,101370.0,0.62698505]
[1746719316345,0.9328479,101380.0,101370.0,0.64240524]
[1746719317246,0.7356,101380.0,101370.0,0.64240524]
[1746719317450,0.9328479,101380.0,101370.0,0.64240524]
[1746719317763,1.13551877,101380.0,101370.0,0.44513784]
[1746719317940,1.13551877,101380.0,101370.0,0.07533784]
[1746719318146,0.0492986,101410.0,101390.0,0.0986132]
[1746719318345,0.7429,101420.0,101410.0,0.1971896]
[1746719318553,0.9400701,101420.0,101410.0,0.42684546]
[1746719318754,0.3821,101420.0,101410.0,0.80684546]
[1746719319051,0.1971701,101420.0,101410.0,0.95473226]
[1746719319251,1.0889374,101430.0,101420.0,0.1971701]
[1746719319453,1.0889374,101430.0,101420.0,0.40698499]
[1746719319653,1.0889374,101430.0,101420.0,0.60415509]
[1746719320453,1.0889374,101430.0,101420.0,0.40698499]
[1746719320643,1.0909374,101430.0,101420.0,0.02698499]
[1746719321752,1.0929374,101430.0,101420.0,0.02698499]
[1746719321957,0.7321374,101430.0,101420.0,0.02698499]
[1746719322153,0.5842507,101430.0,101420.0,0.59575509]
[1746719322753,0.9450507,101430.0,101420.0,0.39858499]
[1746719322955,0.9450507,101430.0,101420.0,0.59575509]
[1746719323452,0.005,101430.0,101420.0,0.79842596]
[1746719323751,0.005,101430.0,101420.0,0.79841775]
[1746719324149,0.003,101430.0,101420.0,0.79841775]
[1746719324458,0.2001507,101430.0,101420.0,0.59774688]
[1746719324651,0.5831507,101430.0,101420.0,0.59774688]
[1746719324850,0.5831507,101430.0,101420.0,0.61315872]
[1746719325259,0.384,101430.0,101420.0,0.81582959]
[1746719325451,0.1843,101430.0,101420.0,0.81782211]
[1746719325644,0.001,101430.0,101420.0,0.81782211]
[1746719325849,0.001,101430.0,101420.0,1.17862211]
[1746719326457,0.001,101440.0,101430.0,0.1971507]
[1746719326757,0.001,101440.0,101430.0,1.18870271]
[1746719326960,0.001,101440.0,101430.0,0.82790271]
[1746719327149,0.001,101440.0,101430.0,1.18870271]
[1746719328251,0.001,101440.0,101430.0,1.21910892]
[1746719328452,0.001,101440.0,101430.0,1.36238674]
[1746719328655,0.1981143,101450.0,101440.0,0.1971313]
[1746719328856,0.1981143,101450.0,101440.0,0.5956006]
[1746719329153,0.8814256,101460.0,101440.0,0.6941612]
[1746719329357,0.1971144,101450.0,101440.0,0.28879174]
[1746719329753,0.9799709,101460.0,101450.0,0.1971118]
[1746719329958,0.9799709,101460.0,101450.0,0.2240811]
[1746719330352,0.9799709,101460.0,101450.0,0.04238114]
[1746719330547,1.18264177,101460.0,101450.0,0.04238114]
[1746719331160,1.18664177,101460.0,101450.0,0.04238114]
[1746719331860,1.19064177,101460.0,101450.0,0.04238114]
[1746719332252,1.19064177,101460.0,101450.0,0.03082287]
[1746719332453,1.19064177,101460.0,101450.0,0.04238007]
[1746719332655,1.28920577,101460.0,101450.0,0.02696904]
[1746719333158,0.1971313,101440.0,101430.0,0.14327782]
[1746719333350,1.12140217,101440.0,101430.0,0.14327782]
[1746719333750,0.1971507,101430.0,101420.0,0.00744345]
[1746719334050,0.1971701,101420.0,101410.0,0.63093747]
[1746719334460,0.5748701,101420.0,101410.0,0.66178326]
[1746719334863,0.3777,101420.0,101410.0,0.66178326]
[1746719335359,0.3608,101430.0,101420.0,0.1971701]
[1746719335865,0.295706,101440.0,101430.0,0.1971507]
[1746719336055,0.295706,101440.0,101420.0,0.2957343]
[1746719336056,0.1971507,101430.0,101420.0,0.2957343]
[1746719336255,0.5579507,101430.0,101420.0,0.1971554]
[1746719336456,0.5607507,101430.0,101420.0,0.1971554]
[1746719336864,0.9215507,101430.0,101420.0,0.20451325]
[1746719337165,0.5607507,101430.0,101420.0,0.20451325]
[1746719337668,0.9215507,101430.0,101420.0,0.20451325]
[1746719337866,0.7058019,101440.0,101430.0,0.1971507]
[1746719338059,1.0223151,101440.0,101430.0,0.1971507]
[1746719338455,0.6615151,101440.0,101430.0,0.1971507]
[1746719338660,1.0223151,101440.0,101430.0,0.1971507]
[1746719338862,0.1971507,101430.0,101420.0,0.30509145]
[1746719339056,0.1971507,101430.0,101420.0,0.00935785]
[1746719339362,0.5626507,101430.0,101420.0,0.20452795]
[1746719339868,0.1971507,101430.0,101420.0,0.56532795]
[1746719340060,0.5433,101440.0,101430.0,0.1971507]
[1746719340268,0.1971313,101440.0,101430.0,0.1971507]
[1746719340563,1.0219861,101450.0,101440.0,0.1971313]
[1746719340758,0.1971313,101440.0,101430.0,0.2957054]
[1746719340960,0.1971313,101440.0,101430.0,0.1971374]
[1746719340961,0.5579313,101440.0,101430.0,0.1971374]
[1746719341359,0.7404313,101440.0,101430.0,0.1971374]
[1746719341558,0.1971313,101440.0,101430.0,0.1971374]
[1746719342162,0.3897313,101440.0,101430.0,0.1971374]
[1746719342971,0.3897313,101440.0,101430.0,0.3887374]
[1746719343167,0.9312313,101440.0,101430.0,0.3887374]
[1746719343371,1.13390217,101440.0,101430.0,0.3887374]
[1746719343562,0.77310217,101440.0,101430.0,0.3887374]
[1746719343763,1.13390217,101440.0,101430.0,0.3887374]
[1746719343966,0.77310217,101440.0,101430.0,0.3887374]
[1746719344171,1.13390217,101440.0,101430.0,0.5870374]
[1746719344565,0.1971507,101430.0,101420.0,0.00735785]
[1746719344767,0.3781,101430.0,101420.0,0.3887701]
[1746719345070,0.705767,101450.0,101440.0,0.1971313]
[1746719345270,1.29803787,101450.0,101440.0,0.02648031]
[1746719345467,1.29803787,101450.0,101440.0,0.22361161]
[1746719345772,1.095367,101450.0,101440.0,0.61931161]
[1746719345968,1.24875627,101450.0,101440.0,0.61931161]
[1746719346164,0.9475118,101450.0,101440.0,0.61931161]
[1746719346561,0.6096737,101460.0,101440.0,0.42218031]
[1746719346764,0.996776,101460.0,101450.0,0.5928118]
[1746719346965,0.002,101470.0,101460.0,0.1970924]
[1746719347165,0.76254387,101470.0,101460.0,0.41041206]
[1746719347365,1.14444387,101470.0,101460.0,0.60750446]
[1746719347677,0.580973,101470.0,101460.0,0.62274449]
[1746719348380,0.941773,101470.0,101460.0,0.62274449]
[1746719348587,0.584973,101470.0,101460.0,0.62274449]
[1746719348775,0.949773,101470.0,101460.0,0.62274449]
[1746719348978,0.3708,101470.0,101460.0,0.62274449]
[1746719349177,0.01,101470.0,101460.0,1.18621536]
[1746719349384,0.01,101470.0,101460.0,1.18633066]
[1746719349583,0.207073,101470.0,101460.0,0.62285979]
[1746719350092,0.567873,101470.0,101460.0,0.62285979]
[1746719350281,1.14764387,101470.0,101460.0,0.23136739]
[1746719350482,0.944973,101470.0,101460.0,0.62005979]
[1746719350782,1.14764387,101470.0,101460.0,0.42311123]
[1746719351094,1.14764387,101470.0,101460.0,0.23151123]
[1746719351384,0.767173,101470.0,101460.0,0.42860363]
[1746719351590,0.584173,101470.0,101460.0,0.62020363]
[1746719351778,0.207073,101470.0,101460.0,0.62020363]
[1746719351983,0.207073,101470.0,101460.0,0.8228745]
[1746719352182,0.207073,101470.0,101460.0,0.77670421]
[1746719352489,0.207073,101470.0,101460.0,0.7879856]
[1746719352790,0.584273,101470.0,101460.0,0.7879856]
[1746719352987,0.01,101470.0,101460.0,0.7879856]
[1746719353190,0.207073,101470.0,101460.0,0.6199856]
[1746719353989,0.570073,101470.0,101460.0,0.6199856]
[1746719354189,1.13354387,101470.0,101460.0,0.2312932]
[1746719354385,1.13354387,101470.0,101460.0,0.4283856]
[1746719354584,0.570073,101470.0,101460.0,0.4283856]
[1746719354785,0.570073,101470.0,101460.0,0.6150856]
[1746719355086,0.20651511,101470.0,101460.0,0.59984557]
[1746719355787,0.57051511,101470.0,101460.0,0.59984557]
[1746719356691,0.93131511,101470.0,101460.0,0.59984557]
[1746719356881,0.57051511,101470.0,101460.0,0.59984557]
[1746719357079,0.57051511,101470.0,101460.0,0.59957031]
[1746719357478,0.20651511,101470.0,101460.0,0.59956938]